fUSD/lending_fUSD_20240318
["ID","MTS","AMOUNT","RATE_DAILY","PERIOD"]
[319498234,1710802237028,-500.0,0.00022191,2]
[319498235,1710802237038,-500.0,0.00022191,2]
[319498236,1710802237047,-500.0,0.00022191,2]
[319498237,1710802237058,-500.0,0.00022191,2]
[319498238,1710802237067,-500.0,0.00022191,2]
[319498239,1710802237077,-500.0,0.00022191,2]
[319498240,1710802237086,-242.75773458,0.00022191,2]
[319498241,1710802237095,-444.54039627,0.00022191,2]
[319498242,1710802237105,-500.0,0.00022191,2]
[319498243,1710802237114,-500.0,0.00022191,2]
[319498244,1710802237123,-500.0,0.00022191,2]
[319498245,1710802237133,-500.0,0.00022191,2]
[319498246,1710802237142,-500.0,0.00022191,2]
[319498247,1710802237152,-500.0,0.00022191,2]
[319498248,1710802237165,-500.0,0.00022191,2]
[319498249,1710802237174,-500.0,0.00022191,2]
[319498250,1710802237183,-500.0,0.00022191,2]
[319498251,1710802237193,-500.0,0.00022191,2]
[319498252,1710802237202,-500.0,0.00022191,2]
[319498253,1710802237211,-500.0,0.00022191,2]
[319498254,1710802237221,-500.0,0.00022191,2]
[319498255,1710802237231,-500.0,0.00022191,2]
[319498256,1710802237240,-500.0,0.00022191,2]
[319498257,1710802237249,-500.0,0.00022191,2]
[319498258,1710802237259,-500.0,0.00022191,2]
[319498259,1710802237268,-500.0,0.00022191,2]
[319498260,1710802237277,-500.0,0.00022191,2]
[319498261,1710802237287,-500.0,0.00022191,2]
[319498262,1710802237298,-273.30057747,0.00022191,2]
[319498263,1710802237309,-500.0,0.00022191,2]
[319498264,1710802237318,-500.0,0.00022191,2]
[319498265,1710802237328,-500.0,0.00022191,2]
[319498266,1710802237337,-500.0,0.00022191,2]
[319498267,1710802237346,-500.0,0.00022191,2]
[319498268,1710802237356,-500.0,0.00022191,2]
[319498269,1710802237366,-500.0,0.00022191,2]
[319498270,1710802237377,-500.0,0.00022191,2]
[319498271,1710802237386,-526.7,0.00022191,2]
[319498272,1710802237395,-783.99,0.00022191,2]
[319498273,1710802237405,-500.0,0.00022191,2]
[319498274,1710802237417,-500.0,0.00022191,2]
[319498275,1710802237427,-500.0,0.00022191,2]
[319498276,1710802237436,-500.0,0.00022191,2]
[319498277,1710802237445,-712.46,0.00022191,2]
[319498278,1710802237454,-500.0,0.00022191,2]
[319498279,1710802237464,-500.0,0.00022191,2]
[319498280,1710802237473,-1152.49,0.00022191,2]
[319498281,1710802237482,-500.0,0.00022191,2]
[319498282,1710802237491,-500.0,0.00022191,2]
[319498283,1710802237501,-500.0,0.00022191,2]
[319498284,1710802237512,-500.0,0.00022191,2]
[319498285,1710802237522,-500.0,0.00022191,2]
[319498286,1710802237531,-500.0,0.00022191,2]
[319498287,1710802237541,-500.0,0.00022191,2]
[319498288,1710802237550,-500.0,0.00022191,2]
[319498289,1710802237559,-500.0,0.00022191,2]
[319498290,1710802237569,-500.0,0.00022191,2]
[319498291,1710802237577,-1533.337,0.00022337,2]
[319498292,1710802237587,-150.0,0.00022337,2]
[319498293,1710802237596,-150.0,0.00022337,2]
[319498294,1710802237605,-150.0,0.00022337,2]
[319498295,1710802237615,-500.0,0.00022465,2]
[319498296,1710802237624,-543.68,0.00022465,2]
[319498297,1710802237634,-500.0,0.00022465,2]
[319498298,1710802237645,-694.8,0.00022465,2]
[319498299,1710802237655,-500.0,0.00022465,2]
[319498300,1710802237667,-500.0,0.00022465,2]
[319498301,1710802237677,-500.0,0.00022465,2]
[319498302,1710802237686,-500.0,0.00022465,2]
[319498303,1710802237695,-500.0,0.00022465,2]
[319498304,1710802237704,-500.0,0.00022465,2]
[319498305,1710802237714,-802.51,0.00022465,2]
[319498306,1710802237723,-667.68,0.00022465,2]
[319498307,1710802237733,-225.83024567,0.00022465,2]
[319498308,1710802237742,-845.24,0.00022465,2]
[319498309,1710802237752,-500.0,0.00022465,2]
[319498310,1710802237761,-509.71481683,0.00022465,2]
[319498311,1710802237771,-500.0,0.00022465,2]
[319498312,1710802237781,-500.0,0.00022465,2]
[319498314,1710802237790,-212.29750088,0.00022465,2]
[319498315,1710802237799,-500.0,0.00022465,2]
[319498316,1710802237810,-500.0,0.00022465,2]
[319498317,1710802237819,-500.0,0.00022465,2]
[319498318,1710802237829,-500.0,0.00022465,2]
[319498319,1710802237838,-500.0,0.00022465,2]
[319498320,1710802237847,-500.0,0.00022465,2]
[319498321,1710802237857,-500.0,0.00022465,2]
[319498322,1710802237867,-500.0,0.00022465,2]
[319498323,1710802237876,-500.0,0.00022465,2]
[319498324,1710802237886,-500.0,0.00022465,2]
[319498325,1710802237896,-461.65399508,0.00022465,2]
[319498326,1710802237906,-500.0,0.00022465,2]
[319498327,1710802237918,-500.0,0.00022465,2]
[319498328,1710802237928,-500.0,0.00022465,2]
[319498332,1710802237938,-502.10738062,0.00022465,2]
[319498335,1710802237948,-500.0,0.00022465,2]
[319498338,1710802237958,-500.0,0.00022465,2]
[319498341,1710802237968,-500.0,0.00022465,2]
[319498345,1710802237977,-500.0,0.00022465,2]
[319498349,1710802237987,-500.0,0.00022465,2]
[319498352,1710802237997,-500.0,0.00022465,2]
[319498354,1710802238006,-500.0,0.00022465,2]
[319498356,1710802238016,-500.0,0.00022465,2]
[319498358,1710802238026,-500.0,0.00022465,2]
[319498360,1710802238035,-500.0,0.00022465,2]
[319498362,1710802238045,-500.0,0.00022465,2]
[319498364,1710802238055,-500.0,0.00022465,2]
[319498366,1710802238064,-500.0,0.00022465,2]
[319498368,1710802238073,-500.0,0.00022465,2]
[319498369,1710802238083,-500.0,0.00022465,2]
[319498370,1710802238092,-500.0,0.00022465,2]
[319498371,1710802238101,-500.0,0.00022465,2]
[319498372,1710802238111,-500.0,0.00022465,2]
[319498373,1710802238120,-500.0,0.00022465,2]
[319498374,1710802238130,-500.0,0.00022465,2]
[319498375,1710802238139,-500.0,0.00022465,2]
[319498376,1710802238148,-500.0,0.00022465,2]
[319498377,1710802238159,-500.0,0.00022465,2]
[319498378,1710802238169,-502.81551394,0.00022465,2]
[319498379,1710802238178,-500.0,0.00022465,2]
[319498380,1710802238187,-500.0,0.00022465,2]
[319498381,1710802238197,-500.0,0.00022465,2]
[319498382,1710802238206,-500.0,0.00022465,2]
[319498383,1710802238216,-500.0,0.00022465,2]
[319498384,1710802238225,-500.0,0.00022465,2]
[319498385,1710802238235,-500.0,0.00022465,2]
[319498386,1710802238244,-500.0,0.00022465,2]
[319498387,1710802238254,-500.0,0.00022465,2]
[319498388,1710802238263,-500.0,0.00022465,2]
[319498389,1710802238273,-526.7,0.00022465,2]
[319498390,1710802238283,-783.99,0.00022465,2]
[319498391,1710802238293,-500.0,0.00022465,2]
[319498392,1710802238305,-500.0,0.00022465,2]
[319498393,1710802238315,-500.0,0.00022465,2]
[319498394,1710802238324,-500.0,0.00022465,2]
[319498395,1710802238333,-712.46,0.00022465,2]
[319498396,1710802238343,-500.0,0.00022465,2]
[319498397,1710802238352,-500.0,0.00022465,2]
[319498398,1710802238361,-1152.49,0.00022465,2]
[319498399,1710802238371,-500.0,0.00022465,2]
[319498401,1710802238383,-500.0,0.00022465,2]
[319498402,1710802238392,-500.0,0.00022465,2]
[319498403,1710802238401,-500.0,0.00022465,2]
[319498404,1710802238413,-500.0,0.00022465,2]
[319498405,1710802238422,-500.0,0.00022465,2]
[319498406,1710802238431,-500.0,0.00022465,2]
[319498407,1710802238440,-500.0,0.00022465,2]
[319498408,1710802238450,-500.0,0.00022465,2]
[319498409,1710802238459,-500.0,0.00022465,2]
[319498410,1710802238468,-188.49,0.00022556,2]
[319498411,1710802238477,-151.05666748,0.00022634,2]
[319498412,1710802238487,-168.10305,0.00022675,2]
[319498413,1710802238496,-393.785511,0.00022675,2]
[319498414,1710802238505,-166.788177,0.00022675,2]
[319498415,1710802238514,-232.942337,0.00022675,2]
[319498416,1710802238523,-179.438677,0.00022675,2]
[319498417,1710802238533,-1187.64765,0.00022675,2]
[319498418,1710802238542,-176.973267,0.00022675,2]
[319498419,1710802238552,-300.6199,0.00022675,2]
[319498420,1710802238561,-510.911509,0.00022675,2]
[319498421,1710802238571,-599.142288,0.00022675,2]
[319498422,1710802238580,-705.743073,0.00022675,2]
[319498423,1710802238596,-312.974409,0.00022675,2]
[319498424,1710802238610,-462.483516,0.00022675,2]
[319498425,1710802238620,-168.720453,0.00022675,2]
[319498426,1710802238730,-178.682677,0.00022675,2]
[319498427,1710802238740,-190.113044,0.00022675,2]
[319498428,1710802238750,-194.915679,0.00022675,2]
[319498429,1710802238759,-198.371011,0.00022676,2]
[319498430,1710802238768,-181.743366,0.00022676,2]
[319498431,1710802238778,-466.170483,0.00022676,2]
[319498432,1710802238787,-174.491419,0.00022676,2]
[319498433,1710802238797,-166.440208,0.00022676,2]
[319498434,1710802238806,-179.076938,0.00022676,2]
[319498435,1710802238815,-171.769411,0.00022676,2]
[319498436,1710802238824,-174.21791,0.00022676,2]
[319498437,1710802238834,-175.320884,0.00022676,2]
[319498438,1710802238843,-180.31476,0.00022676,2]
[319498439,1710802238852,-180.79373,0.00022676,2]
[319498440,1710802238861,-154.816008,0.00022676,2]
[319498441,1710802238872,-500.0,0.00022739,2]
[319498442,1710802238881,-500.0,0.00022739,2]
[319498443,1710802238890,-694.8,0.00022739,2]
[319498444,1710802238899,-500.0,0.00022739,2]
[319498445,1710802238910,-500.0,0.00022739,2]
[319498446,1710802238919,-500.0,0.00022739,2]
[319498447,1710802238929,-500.0,0.00022739,2]
[319498448,1710802238940,-500.0,0.00022739,2]
[319498449,1710802238950,-500.0,0.00022739,2]
[319498450,1710802238959,-802.51,0.00022739,2]
[319498451,1710802238968,-667.68,0.00022739,2]
[319498452,1710802238977,-845.24,0.00022739,2]
[319498453,1710802238986,-500.0,0.00022739,2]
[319498454,1710802238995,-500.0,0.00022739,2]
[319498455,1710802239004,-500.0,0.00022739,2]
[319498456,1710802239013,-500.0,0.00022739,2]
[319498457,1710802239023,-500.0,0.00022739,2]
[319498458,1710802239032,-500.0,0.00022739,2]
[319498459,1710802239042,-500.0,0.00022739,2]
[319498460,1710802239051,-500.0,0.00022739,2]
[319498461,1710802239061,-500.0,0.00022739,2]
[319498462,1710802239070,-500.0,0.00022739,2]
[319498463,1710802239079,-457.86,0.00022739,2]
[319498464,1710802239089,-500.0,0.00022739,2]
[319498465,1710802239098,-526.7,0.00022739,2]
[319498466,1710802239107,-783.99,0.00022739,2]
[319498467,1710802239117,-500.0,0.00022739,2]
[319498468,1710802239127,-536.6,0.00022739,2]
[319498469,1710802239135,-712.46,0.00022739,2]
[319498470,1710802239145,-500.0,0.00022739,2]
[319498471,1710802239154,-1152.49,0.00022739,2]
[319498472,1710802239164,-500.0,0.00022739,2]
[319498473,1710802239174,-500.0,0.00022739,2]
[319498474,1710802239187,-505.92822596,0.00022739,2]
[319498475,1710802239197,-578.59095496,0.00022739,2]
[319498476,1710802239206,-500.0,0.00022739,2]
[319498477,1710802239216,-500.0,0.00022739,2]
[319498478,1710802239226,-500.0,0.00022739,2]
[319498479,1710802239236,-445.62,0.0002274,2]
[319498480,1710802239247,-393.785511,0.00022959,2]
[319498481,1710802239257,-232.942337,0.00022959,2]
[319498482,1710802239267,-1187.64765,0.00022959,2]
[319498483,1710802239276,-176.973267,0.00022959,2]
[319498484,1710802239286,-466.170483,0.00022959,2]
[319498485,1710802239295,-300.6199,0.00022959,2]
[319498486,1710802239307,-510.911509,0.00022959,2]
[319498487,1710802239316,-599.142288,0.00022959,2]
[319498488,1710802239325,-705.743073,0.00022959,2]
[319498489,1710802239334,-312.974409,0.00022959,2]
[319498490,1710802239345,-462.483516,0.00022959,2]
[319498491,1710802239354,-190.113044,0.00022959,2]
[319498492,1710802239363,-306.0676328,0.00023,2]
[319498493,1710802239372,-34998.02554367,0.00023011,2]
[319498494,1710802239382,-376.01054461,0.00023013,2]
[319498495,1710802239391,-500.0,0.00023013,2]
[319498496,1710802239400,-694.8,0.00023013,2]
[319498497,1710802239410,-500.0,0.00023013,2]
[319498498,1710802239420,-500.0,0.00023013,2]
[319498499,1710802239430,-500.0,0.00023013,2]
[319498500,1710802239441,-500.0,0.00023013,2]
[319498501,1710802239450,-500.0,0.00023013,2]
[319498502,1710802239459,-500.0,0.00023013,2]
[319498503,1710802239468,-802.51,0.00023013,2]
[319498504,1710802239476,-667.68,0.00023013,2]
[319498505,1710802239485,-845.24,0.00023013,2]
[319498506,1710802239495,-500.0,0.00023013,2]
[319498507,1710802239504,-500.0,0.00023013,2]
[319498508,1710802239513,-500.0,0.00023013,2]
[319498509,1710802239523,-160.84,0.00023013,2]
[319498510,1710802239532,-553.24,0.00023013,2]
[319498511,1710802239542,-500.0,0.00023013,2]
[319498512,1710802239551,-500.0,0.00023013,2]
[319498513,1710802239560,-500.0,0.00023013,2]
[319498514,1710802239570,-500.0,0.00023013,2]
[319498515,1710802239579,-500.0,0.00023013,2]
[319498516,1710802239588,-500.0,0.00023013,2]
[319498517,1710802239597,-526.7,0.00023013,2]
[319498518,1710802239607,-783.99,0.00023013,2]
[319498519,1710802239616,-712.46,0.00023013,2]
[319498520,1710802239625,-1152.49,0.00023013,2]
[319498521,1710802239634,-453.16,0.00023013,2]
[319498522,1710802239643,-500.0,0.00023013,2]
[319498523,1710802239653,-327.0,0.00023013,2]
[319498524,1710802239665,-150.95,0.00023014,2]
[319498525,1710802239674,-154.816008,0.00023053,2]
[319498526,1710802239683,-178.682677,0.00023053,2]
[319498527,1710802239692,-151.05666748,0.00023111,2]
[319498528,1710802239701,-393.785511,0.00023242,2]
[319498529,1710802239711,-232.942337,0.00023242,2]
[319498530,1710802239721,-1187.64765,0.00023242,2]
[319498531,1710802239731,-176.973267,0.00023242,2]
[319498533,1710802239741,-466.170483,0.00023242,2]
[319498534,1710802239750,-300.6199,0.00023242,2]
[319498535,1710802239759,-510.911509,0.00023242,2]
[319498536,1710802239769,-599.142288,0.00023242,2]
[319498537,1710802239778,-705.743073,0.00023242,2]
[319498538,1710802239788,-312.974409,0.00023242,2]
[319498539,1710802239797,-462.483516,0.00023242,2]
[319498540,1710802239807,-190.113044,0.00023242,2]
[319498541,1710802239817,-179.438677,0.00023242,2]
[319498542,1710802239826,-166.440208,0.00023242,2]
[319498543,1710802239836,-179.076938,0.00023242,2]
[319498544,1710802239845,-180.31476,0.00023242,2]
[319498545,1710802239854,-500.0,0.00023287,2]
[319498546,1710802239864,-694.8,0.00023287,2]
[319498547,1710802239874,-500.0,0.00023287,2]
[319498548,1710802239883,-500.0,0.00023287,2]
[319498549,1710802239892,-500.0,0.00023287,2]
[319498550,1710802239902,-500.0,0.00023287,2]
[319498551,1710802239912,-500.0,0.00023287,2]
[319498552,1710802239921,-802.51,0.00023287,2]
[319498553,1710802239931,-667.68,0.00023287,2]
[319498554,1710802239940,-845.24,0.00023287,2]
[319498556,1710802239950,-500.0,0.00023287,2]
[319498558,1710802239960,-196.16376847,0.00023287,2]
[319498559,1710802239969,-389.18204596,0.00023287,2]
[319498560,1710802239978,-500.0,0.00023287,2]
[319498561,1710802239987,-500.0,0.00023287,2]
[319498562,1710802239997,-500.0,0.00023287,2]
[319498563,1710802240006,-500.0,0.00023287,2]
[319498564,1710802240016,-500.0,0.00023287,2]
[319498565,1710802240025,-500.0,0.00023287,2]
[319498566,1710802240035,-526.7,0.00023287,2]
[319498567,1710802240045,-783.99,0.00023287,2]
[319498568,1710802240054,-712.46,0.00023287,2]
[319498569,1710802240063,-1152.49,0.00023287,2]
[319498570,1710802240072,-500.0,0.00023287,2]
[319498571,1710802240081,-155.0,0.00023288,2]
[319498572,1710802240090,-154.816008,0.00023431,2]
[319498573,1710802240099,-178.682677,0.00023431,2]
[319498574,1710802240107,-393.785511,0.00023526,2]
[319498575,1710802240117,-232.942337,0.00023526,2]
[319498576,1710802240126,-1187.64765,0.00023526,2]
[319498577,1710802240136,-176.973267,0.00023526,2]
[319498578,1710802240145,-466.170483,0.00023526,2]
[319498579,1710802240155,-300.6199,0.00023526,2]
[319498580,1710802240165,-510.911509,0.00023526,2]
[319498581,1710802240174,-599.142288,0.00023526,2]
[319498582,1710802240183,-705.743073,0.00023526,2]
[319498583,1710802240194,-312.974409,0.00023526,2]
[319498584,1710802240203,-462.483516,0.00023526,2]
[319498585,1710802240212,-190.113044,0.00023526,2]
[319498586,1710802240222,-1919.09106593,0.0002354,2]
[319498587,1710802240231,-500.0,0.0002356,2]
[319498588,1710802240240,-500.0,0.00023561,2]
[319498589,1710802240249,-694.8,0.00023561,2]
[319498590,1710802240258,-500.0,0.00023561,2]
[319498591,1710802240267,-500.0,0.00023561,2]
[319498592,1710802240276,-500.0,0.00023561,2]
[319498593,1710802240286,-512.29400077,0.00023561,2]
[319498594,1710802240295,-500.0,0.00023561,2]
[319498595,1710802240306,-802.51,0.00023561,2]
[319498596,1710802240316,-667.68,0.00023561,2]
[319498597,1710802240324,-845.24,0.00023561,2]
[319498598,1710802240334,-500.0,0.00023561,2]
[319498599,1710802240344,-500.0,0.00023561,2]
[319498600,1710802240353,-500.0,0.00023561,2]
[319498601,1710802240362,-311.14437292,0.00023561,2]
[319498602,1710802240371,-500.0,0.00023561,2]
[319498603,1710802240380,-500.0,0.00023561,2]
[319498604,1710802240391,-500.0,0.00023561,2]
[319498605,1710802240400,-526.7,0.00023561,2]
[319498606,1710802240409,-783.99,0.00023561,2]
[319498607,1710802240419,-712.46,0.00023561,2]
[319498608,1710802240428,-1152.49,0.00023561,2]
[319498609,1710802240437,-500.0,0.00023561,2]
[319498610,1710802240447,-151.05666748,0.00023587,2]
[319498611,1710802240456,-431.21,0.00023711,2]
[319498612,1710802240465,-393.785511,0.00023809,2]
[319498613,1710802240474,-232.942337,0.00023809,2]
[319498614,1710802240485,-1187.64765,0.00023809,2]
[319498615,1710802240495,-176.973267,0.00023809,2]
[319498616,1710802240506,-466.170483,0.00023809,2]
[319498617,1710802240515,-300.6199,0.00023809,2]
[319498618,1710802240524,-510.911509,0.00023809,2]
[319498619,1710802240533,-599.142288,0.00023809,2]
[319498620,1710802240542,-705.743073,0.00023809,2]
[319498621,1710802240550,-312.974409,0.00023809,2]
[319498622,1710802240559,-462.483516,0.00023809,2]
[319498623,1710802240568,-190.113044,0.00023809,2]
[319498624,1710802240577,-179.438677,0.00023809,2]
[319498625,1710802240586,-166.440208,0.00023809,2]
[319498626,1710802240595,-179.076938,0.00023809,2]
[319498627,1710802240604,-171.769411,0.00023809,2]
[319498628,1710802240615,-180.79373,0.00023809,2]
[319498629,1710802240624,-180.31476,0.00023809,2]
[319498630,1710802240633,-194.915679,0.00023809,2]
[319498631,1710802240642,-154.816008,0.00023809,2]
[319498632,1710802240651,-178.682677,0.00023809,2]
[319498633,1710802240661,-500.0,0.00023833,2]
[319498634,1710802240671,-500.0,0.00023833,2]
[319498635,1710802240680,-501.44994996,0.00023833,2]
[319498636,1710802240690,-612.56387288,0.00023833,2]
[319498637,1710802240698,-500.0,0.00023833,2]
[319498638,1710802240707,-212.16392658,0.00023833,2]
[319498639,1710802240716,-500.0,0.00023833,2]
[319498640,1710802240725,-500.0,0.00023833,2]
[319498641,1710802240734,-554.13827319,0.00023833,2]
[319498642,1710802240743,-500.0,0.00023833,2]
[319498643,1710802240752,-500.0,0.00023833,2]
[319498644,1710802240761,-500.0,0.00023833,2]
[319498645,1710802240770,-500.0,0.00023835,2]
[319498646,1710802240780,-694.8,0.00023835,2]
[319498647,1710802240789,-500.0,0.00023835,2]
[319498648,1710802240798,-500.0,0.00023835,2]
[319498649,1710802240807,-500.0,0.00023835,2]
[319498650,1710802240817,-500.0,0.00023835,2]
[319498651,1710802240826,-802.51,0.00023835,2]
[319498652,1710802240835,-667.68,0.00023835,2]
[319498653,1710802240844,-845.24,0.00023835,2]
[319498654,1710802240853,-500.0,0.00023835,2]
[319498655,1710802240862,-500.0,0.00023835,2]
[319498656,1710802240871,-500.0,0.00023835,2]
[319498657,1710802240880,-500.0,0.00023835,2]
[319498658,1710802240889,-500.0,0.00023835,2]
[319498659,1710802240898,-500.0,0.00023835,2]
[319498660,1710802240907,-526.7,0.00023835,2]
[319498661,1710802240918,-783.99,0.00023835,2]
[319498662,1710802240928,-712.46,0.00023835,2]
[319498663,1710802240937,-1152.49,0.00023835,2]
[319498664,1710802240946,-500.0,0.00023835,2]
[319498665,1710802240955,-223.73529118,0.00024,2]
[319498666,1710802240964,-463.11022735,0.00024056,2]
[319498667,1710802240973,-151.05666748,0.00024064,2]
[319498668,1710802240982,-606.02666349,0.00024107,2]
[319498669,1710802240992,-500.0,0.00024107,2]
[319498670,1710802241001,-270.88171529,0.00024107,2]
[319498671,1710802241010,-500.0,0.00024109,2]
[319498672,1710802241018,-694.8,0.00024109,2]
[319498673,1710802241027,-325.11058425,0.00024109,2]
[319498674,1710802241036,-500.0,0.00024109,2]
[319498675,1710802241046,-500.0,0.00024109,2]
[319498676,1710802241055,-802.51,0.00024109,2]
[319498677,1710802241064,-667.68,0.00024109,2]
[319498678,1710802241073,-845.24,0.00024109,2]
[319498679,1710802241082,-500.0,0.00024109,2]
[319498680,1710802241091,-500.0,0.00024109,2]
[319498681,1710802241100,-500.0,0.00024109,2]
[319498682,1710802241109,-500.0,0.00024109,2]
[319498683,1710802241118,-500.0,0.00024109,2]
[319498684,1710802241127,-500.0,0.00024109,2]
[319498685,1710802241136,-526.7,0.00024109,2]
[319498686,1710802241146,-783.99,0.00024109,2]
[319498687,1710802241155,-712.46,0.00024109,2]
[319498688,1710802241165,-1152.49,0.00024109,2]
[319498689,1710802241175,-500.0,0.00024109,2]
[319498690,1710802241184,-150.95,0.0002411,2]
[319498691,1710802241193,-327.0,0.00024246,2]
[319498692,1710802241202,-400.0,0.00024251,2]
[319498693,1710802241211,-500.0,0.00024381,2]
[319498694,1710802241220,-500.0,0.00024383,2]
[319498695,1710802241229,-694.8,0.00024383,2]
[319498696,1710802241238,-500.0,0.00024383,2]
[319498697,1710802241247,-802.51,0.00024383,2]
[319498698,1710802241256,-667.68,0.00024383,2]
[319498699,1710802241265,-845.24,0.00024383,2]
[319498700,1710802241274,-500.0,0.00024383,2]
[319498701,1710802241284,-500.0,0.00024383,2]
[319498702,1710802241295,-500.0,0.00024383,2]
[319498703,1710802241303,-500.0,0.00024383,2]
[319498704,1710802241312,-500.0,0.00024383,2]
[319498705,1710802241322,-467.61,0.00024383,2]
[319498706,1710802241333,-526.7,0.00024383,2]
[319498707,1710802241342,-783.99,0.00024383,2]
[319498708,1710802241351,-712.46,0.00024383,2]
[319498709,1710802241360,-1152.49,0.00024383,2]
[319498710,1710802241370,-500.0,0.00024383,2]
[319498711,1710802241380,-151.031907,0.00024448,6]
[319498712,1710802241389,-189.907592,0.0002448,2]
[319498713,1710802241398,-173.109916,0.0002448,2]
[319498714,1710802241407,-170.346135,0.0002448,2]
[319498715,1710802241420,-165.222697,0.0002448,2]
[319498716,1710802241429,-173.109917,0.0002448,2]
[319498717,1710802241438,-156.382123,0.0002448,2]
[319498718,1710802241447,-546.1181314,0.00024499,2]
[319498719,1710802241456,-151.05666748,0.0002454,2]
[319498720,1710802241465,-600.0,0.00024648,2]
[319498721,1710802241474,-500.0,0.00024657,2]
[319498722,1710802241483,-694.8,0.00024657,2]
[319498723,1710802241492,-519.18392193,0.00024657,2]
[319498724,1710802241502,-802.51,0.00024657,2]
[319498725,1710802241511,-667.68,0.00024657,2]
[319498726,1710802241520,-845.24,0.00024657,2]
[319498727,1710802241529,-500.0,0.00024657,2]
[319498728,1710802241537,-500.0,0.00024657,2]
[319498729,1710802241546,-500.0,0.00024657,2]
[319498730,1710802241556,-500.0,0.00024657,2]
[319498731,1710802241565,-500.0,0.00024657,2]
[319498732,1710802241574,-526.7,0.00024657,2]
[319498733,1710802241583,-783.99,0.00024657,2]
[319498734,1710802241593,-712.46,0.00024657,2]
[319498735,1710802241602,-1152.49,0.00024657,2]
[319498736,1710802241611,-500.0,0.00024657,2]
[319498737,1710802241621,-239.77,0.00024658,4]
[319498738,1710802241630,-752.04,0.00024658,10]
[319498739,1710802241641,-150.0,0.00024658,2]
[319498740,1710802241650,-155.0,0.00024658,2]
[319498741,1710802241663,-165.222697,0.00024786,2]
[319498742,1710802241673,-500.0,0.00024931,2]
[319498743,1710802241681,-694.8,0.00024931,2]
[319498744,1710802241690,-802.51,0.00024931,2]
[319498745,1710802241699,-667.68,0.00024931,2]
[319498746,1710802241708,-845.24,0.00024931,2]
[319498747,1710802241717,-421.06162278,0.00024931,2]
[319498748,1710802241726,-500.0,0.00024931,2]
[319498749,1710802241735,-500.0,0.00024931,2]
[319498750,1710802241744,-500.0,0.00024931,2]
[319498751,1710802241754,-500.0,0.00024931,2]
[319498752,1710802241763,-526.7,0.00024931,2]
[319498753,1710802241773,-783.99,0.00024931,2]
[319498754,1710802241782,-712.46,0.00024931,2]
[319498755,1710802241792,-1152.49,0.00024931,2]
[319498756,1710802241802,-500.0,0.00024931,2]
[319498757,1710802241812,-917.65127534,0.00025,10]
[319498758,1710802241821,-155.0,0.00025,2]
[319498759,1710802241831,-152.0,0.00025,2]
[319498760,1710802241840,-152.06838728,0.00025,2]
[319498761,1710802241850,-155.0,0.00025,2]
[319498762,1710802241859,-151.05666748,0.00025017,2]
[319498763,1710802241869,-188.49,0.00025062,120]